[Event "Titled Tuesday Blitz June 21 Early 2022"]
[White "Rohith Krishna S"]
[Black "Kamsky, Gata"]
[WhiteFideId "46617051"]
[BlackFideId "2000024"]
[WhiteElo "2117"]
[BlackElo "2645"]
[Result "1-0"]
[Round "05"]
[TimeControl "180+1"]
[Date "2022.06.21"]
[WhiteClock "0:00:58"]
[BlackClock "0:00:03"]

1. Nf3 {[%clk 0:03:00]}  Nf6 {[%clk 0:02:55]} 2. g3 {[%clk 0:03:00]}  g6 {[%clk 0:02:54]} 3. Bg2 {[%clk 0:03:00]}  Bg7 {[%clk 0:02:53]} 4. O-O {[%clk 0:03:01]}  O-O {[%clk 0:02:53]} 5. c4 {[%clk 0:03:01]}  c6 {[%clk 0:02:52]} 6. d4 {[%clk 0:03:00]}  d5 {[%clk 0:02:51]} 7. cxd5 {[%clk 0:03:00]}  cxd5 {[%clk 0:02:51]} 8. Ne5 {[%clk 0:03:00]}  e6 {[%clk 0:02:50]} 9. Nc3 {[%clk 0:02:59]}  Nfd7 {[%clk 0:02:46]} 10. Nxd7 {[%clk 0:02:57]}  Bxd7 {[%clk 0:02:44]} 11. e3 {[%clk 0:02:57]}  Qb6 {[%clk 0:02:41]} 12. a4 {[%clk 0:02:52]}  Nc6 {[%clk 0:02:39]} 13. Bd2 {[%clk 0:02:48]}  Na5 {[%clk 0:02:27]} 14. b4 {[%clk 0:02:39]}  Nc4 {[%clk 0:02:24]} 15. a5 {[%clk 0:02:40]}  Qxb4 {[%clk 0:02:17]} 16. Nxd5 {[%clk 0:02:16]}  Qxd2 {[%clk 0:02:13]} 17. Ne7+ {[%clk 0:02:13]}  Kh8 {[%clk 0:02:12]} 18. Qb3 {[%clk 0:02:13]}  Nxa5 {[%clk 0:02:11]} 19. Qa3 {[%clk 0:02:07]}  Nc6 {[%clk 0:02:04]} 20. Nxc6 {[%clk 0:02:05]}  Qe2 {[%clk 0:00:59]} 21. Ra2 {[%clk 0:02:02]}  Qb5 {[%clk 0:00:57]} 22. Rb2 {[%clk 0:01:46]}  Qa6 {[%clk 0:00:48]} 23. Qxa6 {[%clk 0:01:45]}  bxa6 {[%clk 0:00:48]} 24. Rb7 {[%clk 0:01:39]}  Bxc6 {[%clk 0:00:35]} 25. Bxc6 {[%clk 0:01:40]}  a5 {[%clk 0:00:29]} 26. Ra1 {[%clk 0:01:38]}  Rac8 {[%clk 0:00:19]} 27. Bf3 {[%clk 0:01:36]}  a6 {[%clk 0:00:15]} 28. Rxa5 {[%clk 0:01:33]}  Ra8 {[%clk 0:00:15]} 29. h4 {[%clk 0:01:25]}  h5 {[%clk 0:00:12]} 30. Kg2 {[%clk 0:01:24]}  Rab8 {[%clk 0:00:11]} 31. Ra7 {[%clk 0:01:23]}  Rb6 {[%clk 0:00:11]} 32. d5 {[%clk 0:01:22]}  exd5 {[%clk 0:00:11]} 33. Bxd5 {[%clk 0:01:23]}  Kg8 {[%clk 0:00:10]} 34. R5xa6 {[%clk 0:01:22]}  Rxa6 {[%clk 0:00:10]} 35. Rxa6 {[%clk 0:01:23]}  Kh7 {[%clk 0:00:09]} 36. Ra7 {[%clk 0:01:22]}  Kg8 {[%clk 0:00:09]} 37. Rd7 {[%clk 0:01:21]}  Bf6 {[%clk 0:00:09]} 38. f4 {[%clk 0:01:19]}  Kg7 {[%clk 0:00:10]} 39. e4 {[%clk 0:01:19]}  Bc3 {[%clk 0:00:09]} 40. e5 {[%clk 0:01:19]}  Kg8 {[%clk 0:00:08]} 41. Kf3 {[%clk 0:01:19]}  Bb2 {[%clk 0:00:08]} 42. g4 {[%clk 0:01:14]}  hxg4+ {[%clk 0:00:08]} 43. Kxg4 {[%clk 0:01:14]}  Bc1 {[%clk 0:00:08]} 44. Bc4 {[%clk 0:01:12]}  Be3 {[%clk 0:00:08]} 45. Kg5 {[%clk 0:00:57]}  Bc1 {[%clk 0:00:05]} 46. e6 {[%clk 0:00:57]}  fxe6 {[%clk 0:00:03]} 47. Bxe6+ {[%clk 0:00:57]}  Kh8 {[%clk 0:00:03]} 48. Kxg6 {[%clk 0:00:58]} 1-0


[Site "https://www.chess.com"]

[Event "Titled Tuesday Blitz June 21 Early 2022"]
[White "Rom, Jasper"]
[Black "Barria Zuniga, Daniel"]
[WhiteFideId "2023733"]
[BlackFideId "3400816"]
[WhiteElo "2233"]
[BlackElo "2414"]
[Result "1/2-1/2"]
[Round "05"]
[TimeControl "180+1"]
[Date "2022.06.22"]
[WhiteClock "0:00:04"]
[BlackClock "0:00:06"]

1. e4 {[%clk 0:03:00]}  d5 {[%clk 0:00:42]} 2. exd5 {[%clk 0:02:58]}  Qxd5 {[%clk 0:00:43]} 3. Nc3 {[%clk 0:02:57]}  Qe5+ {[%clk 0:00:42]} 4. Be2 {[%clk 0:02:55]}  c6 {[%clk 0:00:42]} 5. Nf3 {[%clk 0:02:55]}  Qc7 {[%clk 0:00:41]} 6. d4 {[%clk 0:02:55]}  Bf5 {[%clk 0:00:40]} 7. O-O {[%clk 0:02:53]}  e6 {[%clk 0:00:38]} 8. Be3 {[%clk 0:02:45]}  Nf6 {[%clk 0:00:37]} 9. Qd2 {[%clk 0:02:45]}  Nbd7 {[%clk 0:00:34]} 10. Bf4 {[%clk 0:02:40]}  Bd6 {[%clk 0:00:34]} 11. Bg3 {[%clk 0:02:40]}  O-O {[%clk 0:00:33]} 12. Rfe1 {[%clk 0:02:40]}  h6 {[%clk 0:00:32]} 13. Bf1 {[%clk 0:02:30]}  Rad8 {[%clk 0:00:31]} 14. Rad1 {[%clk 0:02:27]}  Bxg3 {[%clk 0:00:31]} 15. hxg3 {[%clk 0:02:26]}  Bh7 {[%clk 0:00:30]} 16. Bd3 {[%clk 0:02:19]}  Bxd3 {[%clk 0:00:29]} 17. Qxd3 {[%clk 0:02:20]}  a6 {[%clk 0:00:28]} 18. Qe3 {[%clk 0:02:19]}  b5 {[%clk 0:00:27]} 19. Ne5 {[%clk 0:02:18]}  Nxe5 {[%clk 0:00:27]} 20. dxe5 {[%clk 0:02:18]}  Rxd1 {[%clk 0:00:26]} 21. Rxd1 {[%clk 0:02:16]}  Ng4 {[%clk 0:00:26]} 22. Qc5 {[%clk 0:02:09]}  Nxe5 {[%clk 0:00:22]} 23. Rd6 {[%clk 0:02:07]}  Nc4 {[%clk 0:00:14]} 24. Rxc6 {[%clk 0:02:05]}  Qd8 {[%clk 0:00:14]} 25. b3 {[%clk 0:01:49]}  Qd2 {[%clk 0:00:12]} 26. bxc4 {[%clk 0:01:44]}  Qxc3 {[%clk 0:00:11]} 27. cxb5 {[%clk 0:01:44]}  Qa1+ {[%clk 0:00:11]} 28. Kh2 {[%clk 0:01:43]}  axb5 {[%clk 0:00:12]} 29. Ra6 {[%clk 0:01:35]}  Qb2 {[%clk 0:00:10]} 30. Ra5 {[%clk 0:01:30]}  Rb8 {[%clk 0:00:07]} 31. Qc7 {[%clk 0:01:29]}  Rf8 {[%clk 0:00:06]} 32. Qc5 {[%clk 0:01:21]}  b4 {[%clk 0:00:06]} 33. Ra4 {[%clk 0:01:09]}  Rb8 {[%clk 0:00:06]} 34. Qd6 {[%clk 0:01:05]}  Rb7 {[%clk 0:00:03]} 35. Qd8+ {[%clk 0:01:00]}  Kh7 {[%clk 0:00:03]} 36. Qd3+ {[%clk 0:00:59]}  g6 {[%clk 0:00:04]} 37. Qe4 {[%clk 0:00:55]}  Rc7 {[%clk 0:00:04]} 38. Rxb4 {[%clk 0:00:49]}  Qxc2 {[%clk 0:00:04]} 39. Qe5 {[%clk 0:00:38]}  Qc3 {[%clk 0:00:04]} 40. Qxc3 {[%clk 0:00:34]}  Rxc3 {[%clk 0:00:05]} 41. a4 {[%clk 0:00:30]}  Ra3 {[%clk 0:00:05]} 42. f3 {[%clk 0:00:28]}  Kg7 {[%clk 0:00:05]} 43. g4 {[%clk 0:00:28]}  Kf6 {[%clk 0:00:05]} 44. Kg3 {[%clk 0:00:28]}  Kg5 {[%clk 0:00:04]} 45. Rb5+ {[%clk 0:00:27]}  f5 {[%clk 0:00:04]} 46. a5 {[%clk 0:00:27]}  h5 {[%clk 0:00:03]} 47. gxh5 {[%clk 0:00:23]}  gxh5 {[%clk 0:00:03]} 48. Rc5 {[%clk 0:00:16]}  Kf6 {[%clk 0:00:02]} 49. Rb5 {[%clk 0:00:16]}  Kg5 {[%clk 0:00:03]} 50. Rc5 {[%clk 0:00:15]}  Kf6 {[%clk 0:00:03]} 51. Kh4 {[%clk 0:00:15]}  Ra2 {[%clk 0:00:02]} 52. Kh3 {[%clk 0:00:13]}  Ra4 {[%clk 0:00:01]} 53. g3 {[%clk 0:00:11]}  Kg5 {[%clk 0:00:01]} 54. f4+ {[%clk 0:00:11]}  Kf6 {[%clk 0:00:01]} 55. Rb5 {[%clk 0:00:11]}  Ra1 {[%clk 0:00:01]} 56. Kg2 {[%clk 0:00:10]}  Ra2+ {[%clk 0:00:01]} 57. Kf3 {[%clk 0:00:10]}  Ra3+ {[%clk 0:00:02]} 58. Kf2 {[%clk 0:00:10]}  Ra4 {[%clk 0:00:02]} 59. Rc5 {[%clk 0:00:08]}  Ra2+ {[%clk 0:00:03]} 60. Ke3 {[%clk 0:00:08]}  Ra3+ {[%clk 0:00:03]} 61. Kd4 {[%clk 0:00:08]}  Rxg3 {[%clk 0:00:03]} 62. Kc4 {[%clk 0:00:08]}  Ra3 {[%clk 0:00:03]} 63. Kb4 {[%clk 0:00:07]}  Ra1 {[%clk 0:00:03]} 64. Rc8 {[%clk 0:00:07]}  h4 {[%clk 0:00:03]} 65. Rh8 {[%clk 0:00:07]}  e5 {[%clk 0:00:02]} 66. Rh6+ {[%clk 0:00:05]}  Kg7 {[%clk 0:00:02]} 67. Rxh4 {[%clk 0:00:05]}  exf4 {[%clk 0:00:03]} 68. Rxf4 {[%clk 0:00:05]}  Kf6 {[%clk 0:00:03]} 69. Rf2 {[%clk 0:00:05]}  Kg5 {[%clk 0:00:03]} 70. Rg2+ {[%clk 0:00:05]}  Kf4 {[%clk 0:00:03]} 71. Rf2+ {[%clk 0:00:05]}  Kg4 {[%clk 0:00:04]} 72. Rg2+ {[%clk 0:00:05]}  Kf3 {[%clk 0:00:04]} 73. Rg5 {[%clk 0:00:04]}  f4 {[%clk 0:00:04]} 74. Kb5 {[%clk 0:00:04]}  Kf2 {[%clk 0:00:04]} 75. a6 {[%clk 0:00:04]}  f3 {[%clk 0:00:04]} 76. Rf5 {[%clk 0:00:04]}  Rxa6 {[%clk 0:00:04]} 77. Kxa6 {[%clk 0:00:04]}  Ke2 {[%clk 0:00:05]} 78. Kb5 {[%clk 0:00:04]}  f2 {[%clk 0:00:05]} 79. Kc4 {[%clk 0:00:04]}  f1=Q {[%clk 0:00:05]} 80. Rxf1 {[%clk 0:00:04]}  Kxf1 {[%clk 0:00:06]} 1/2-1/2


[Site "https://www.chess.com"]

[Event "Titled Tuesday Blitz June 21 Early 2022"]
[White "Rustemov, Alexander"]
[Black "Mortazavi, Ali"]
[WhiteFideId "4119002"]
[BlackFideId "401323"]
[WhiteElo "2748"]
[BlackElo "2339"]
[Result "1-0"]
[Round "05"]
[TimeControl "180+1"]
[Date "2022.06.22"]
[WhiteClock "0:00:23"]
[BlackClock "0:00:03"]

1. d4 {[%clk 0:03:00]}  Nf6 {[%clk 0:02:59]} 2. c4 {[%clk 0:03:01]}  g6 {[%clk 0:03:00]} 3. Nf3 {[%clk 0:03:01]}  Bg7 {[%clk 0:03:01]} 4. g3 {[%clk 0:03:02]}  O-O {[%clk 0:03:01]} 5. Bg2 {[%clk 0:03:03]}  d6 {[%clk 0:03:02]} 6. Nc3 {[%clk 0:03:03]}  Nbd7 {[%clk 0:03:03]} 7. O-O {[%clk 0:03:03]}  e5 {[%clk 0:03:04]} 8. e4 {[%clk 0:03:04]}  c6 {[%clk 0:03:04]} 9. h3 {[%clk 0:03:04]}  Qa5 {[%clk 0:03:05]} 10. Be3 {[%clk 0:03:02]}  Nb6 {[%clk 0:03:05]} 11. Nd2 {[%clk 0:02:52]}  Qb4 {[%clk 0:02:45]} 12. a3 {[%clk 0:02:46]}  Qxb2 {[%clk 0:02:35]} 13. Ne2 {[%clk 0:02:08]}  Nfd7 {[%clk 0:01:50]} 14. Nb3 {[%clk 0:01:58]}  Nxc4 {[%clk 0:01:48]} 15. Bc1 {[%clk 0:01:55]}  Qxa1 {[%clk 0:01:33]} 16. Nxa1 {[%clk 0:01:54]}  exd4 {[%clk 0:01:33]} 17. Nxd4 {[%clk 0:01:55]}  Nc5 {[%clk 0:01:29]} 18. Nab3 {[%clk 0:01:51]}  Ne5 {[%clk 0:01:12]} 19. f4 {[%clk 0:01:43]}  Ned3 {[%clk 0:01:12]} 20. Be3 {[%clk 0:01:37]}  Re8 {[%clk 0:01:12]} 21. Qc2 {[%clk 0:01:35]}  a5 {[%clk 0:01:05]} 22. Nxc5 {[%clk 0:01:33]}  Nxc5 {[%clk 0:01:04]} 23. e5 {[%clk 0:01:29]}  dxe5 {[%clk 0:00:44]} 24. Nxc6 {[%clk 0:01:26]}  Nd7 {[%clk 0:00:31]} 25. Nxe5 {[%clk 0:01:22]}  Nxe5 {[%clk 0:00:30]} 26. fxe5 {[%clk 0:01:23]}  Be6 {[%clk 0:00:30]} 27. Bxb7 {[%clk 0:01:20]}  Rad8 {[%clk 0:00:29]} 28. Bc6 {[%clk 0:01:07]}  Rc8 {[%clk 0:00:29]} 29. Qg2 {[%clk 0:01:06]}  Red8 {[%clk 0:00:27]} 30. Bb6 {[%clk 0:01:04]}  Rd3 {[%clk 0:00:26]} 31. a4 {[%clk 0:01:02]}  Bxe5 {[%clk 0:00:25]} 32. Bf2 {[%clk 0:00:57]}  Rc3 {[%clk 0:00:17]} 33. Bd5 {[%clk 0:00:55]}  Bf5 {[%clk 0:00:09]} 34. g4 {[%clk 0:00:54]}  Bd3 {[%clk 0:00:09]} 35. Re1 {[%clk 0:00:52]}  Rc1 {[%clk 0:00:07]} 36. Qf3 {[%clk 0:00:49]}  Rxe1+ {[%clk 0:00:05]} 37. Bxe1 {[%clk 0:00:50]}  Bd4+ {[%clk 0:00:06]} 38. Bf2 {[%clk 0:00:39]}  Rc1+ {[%clk 0:00:06]} 39. Kg2 {[%clk 0:00:33]}  Bf1+ {[%clk 0:00:06]} 40. Kh2 {[%clk 0:00:25]}  Be5+ {[%clk 0:00:06]} 41. Bg3 {[%clk 0:00:25]}  Rc2+ {[%clk 0:00:03]} 42. Kg1 {[%clk 0:00:23]} 1-0


[Site "https://www.chess.com"]

[Event "Titled Tuesday Blitz June 21 Early 2022"]
[White "Sadhwani, Raunak"]
[Black "Riehle, Marco"]
[WhiteFideId "35093487"]
[BlackFideId "12904392"]
[WhiteElo "2616"]
[BlackElo "2462"]
[Result "1-0"]
[Round "05"]
[TimeControl "180+1"]
[Date "2022.06.21"]
[WhiteClock "0:00:19"]
[BlackClock "0:00:21"]

1. e4 {[%clk 0:03:00]}  e5 {[%clk 0:02:40]} 2. Nf3 {[%clk 0:03:00]}  Nf6 {[%clk 0:02:40]} 3. Nxe5 {[%clk 0:02:53]}  Nxe4 {[%clk 0:02:40]} 4. Qe2 {[%clk 0:02:45]}  Qe7 {[%clk 0:02:40]} 5. Qxe4 {[%clk 0:02:45]}  d6 {[%clk 0:02:40]} 6. d4 {[%clk 0:02:45]}  dxe5 {[%clk 0:02:40]} 7. dxe5 {[%clk 0:02:44]}  Nc6 {[%clk 0:02:40]} 8. Bf4 {[%clk 0:02:40]}  g5 {[%clk 0:02:38]} 9. Bg3 {[%clk 0:02:40]}  f5 {[%clk 0:02:37]} 10. Qa4 {[%clk 0:02:30]}  f4 {[%clk 0:02:36]} 11. Be2 {[%clk 0:02:26]}  Qb4+ {[%clk 0:02:32]} 12. Qxb4 {[%clk 0:02:26]}  Bxb4+ {[%clk 0:02:32]} 13. c3 {[%clk 0:02:26]}  Ba5 {[%clk 0:02:32]} 14. Nd2 {[%clk 0:02:23]}  Nxe5 {[%clk 0:02:31]} 15. O-O-O {[%clk 0:02:22]}  Bf5 {[%clk 0:02:21]} 16. Nb3 {[%clk 0:02:06]}  Bb6 {[%clk 0:02:12]} 17. Rd5 {[%clk 0:02:06]}  O-O {[%clk 0:01:52]} 18. Rxe5 {[%clk 0:01:51]}  fxg3 {[%clk 0:01:52]} 19. fxg3 {[%clk 0:01:52]}  Rae8 {[%clk 0:01:50]} 20. Bc4+ {[%clk 0:01:45]}  Kg7 {[%clk 0:01:49]} 21. Rhe1 {[%clk 0:01:46]}  Rxe5 {[%clk 0:01:49]} 22. Rxe5 {[%clk 0:01:47]}  Bg6 {[%clk 0:01:48]} 23. Nd4 {[%clk 0:01:33]}  Rf2 {[%clk 0:01:43]} 24. Re2 {[%clk 0:01:30]}  Rf1+ {[%clk 0:01:39]} 25. Kd2 {[%clk 0:01:29]}  Rb1 {[%clk 0:01:38]} 26. Ke3 {[%clk 0:01:25]}  a5 {[%clk 0:01:35]} 27. a3 {[%clk 0:01:18]}  Bh5 {[%clk 0:01:27]} 28. Rd2 {[%clk 0:01:13]}  Bg6 {[%clk 0:01:24]} 29. g4 {[%clk 0:00:59]}  h6 {[%clk 0:01:20]} 30. h3 {[%clk 0:00:59]}  Bc5 {[%clk 0:01:15]} 31. Bd3 {[%clk 0:00:54]}  Bxd3 {[%clk 0:01:11]} 32. Kxd3 {[%clk 0:00:53]}  Kf6 {[%clk 0:01:07]} 33. Rf2+ {[%clk 0:00:50]}  Kg6 {[%clk 0:01:07]} 34. Re2 {[%clk 0:00:47]}  b6 {[%clk 0:01:03]} 35. Nf3 {[%clk 0:00:46]}  Kf6 {[%clk 0:01:00]} 36. b4 {[%clk 0:00:45]}  Bd6 {[%clk 0:00:57]} 37. Kc2 {[%clk 0:00:44]}  Ra1 {[%clk 0:00:53]} 38. Kb2 {[%clk 0:00:44]}  Rf1 {[%clk 0:00:52]} 39. Nd2 {[%clk 0:00:43]}  Rg1 {[%clk 0:00:50]} 40. bxa5 {[%clk 0:00:39]}  bxa5 {[%clk 0:00:49]} 41. a4 {[%clk 0:00:39]}  Rd1 {[%clk 0:00:27]} 42. Nc4 {[%clk 0:00:27]}  Rd5 {[%clk 0:00:27]} 43. Rd2 {[%clk 0:00:24]}  Rc5 {[%clk 0:00:22]} 44. Nxd6 {[%clk 0:00:24]}  cxd6 {[%clk 0:00:23]} 45. Rxd6+ {[%clk 0:00:25]}  Ke5 {[%clk 0:00:24]} 46. Rxh6 {[%clk 0:00:24]}  Kf4 {[%clk 0:00:24]} 47. Rh5 {[%clk 0:00:21]}  Re5 {[%clk 0:00:22]} 48. h4 {[%clk 0:00:18]}  Re2+ {[%clk 0:00:20]} 49. Kb3 {[%clk 0:00:18]}  gxh4 {[%clk 0:00:19]} 50. Rxh4 {[%clk 0:00:19]}  Rxg2 {[%clk 0:00:19]} 51. Rh5 {[%clk 0:00:18]}  Kxg4 {[%clk 0:00:19]} 52. Rxa5 {[%clk 0:00:18]}  Kf4 {[%clk 0:00:20]} 53. Rc5 {[%clk 0:00:18]}  Ke4 {[%clk 0:00:20]} 54. a5 {[%clk 0:00:18]}  Rg1 {[%clk 0:00:20]} 55. Ka4 {[%clk 0:00:17]}  Ra1+ {[%clk 0:00:20]} 56. Kb5 {[%clk 0:00:17]}  Rb1+ {[%clk 0:00:19]} 57. Kc6 {[%clk 0:00:17]}  Ra1 {[%clk 0:00:20]} 58. Kb6 {[%clk 0:00:18]}  Rb1+ {[%clk 0:00:20]} 59. Rb5 {[%clk 0:00:18]}  Rh1 {[%clk 0:00:21]} 60. a6 {[%clk 0:00:18]}  Rh6+ {[%clk 0:00:21]} 61. Ka5 {[%clk 0:00:19]} 1-0


[Site "https://www.chess.com"]

[Event "Titled Tuesday Blitz June 21 Early 2022"]
[White "Sadykov, Ramil"]
[Black "Vifleemskaia, Svetlana"]
[WhiteFideId "24113590"]
[BlackFideId "4129490"]
[WhiteElo "2226"]
[BlackElo "1929"]
[Result "1-0"]
[Round "05"]
[TimeControl "180+1"]
[Date "2022.06.22"]
[WhiteClock "0:01:23"]
[BlackClock "0:00:01"]

1. e4 {[%clk 0:03:00]}  e5 {[%clk 0:02:54]} 2. Nf3 {[%clk 0:02:55]}  Nc6 {[%clk 0:02:47]} 3. Bc4 {[%clk 0:02:54]}  Nf6 {[%clk 0:02:45]} 4. d3 {[%clk 0:02:53]}  Be7 {[%clk 0:02:45]} 5. O-O {[%clk 0:02:52]}  O-O {[%clk 0:02:46]} 6. c3 {[%clk 0:02:52]}  d5 {[%clk 0:02:42]} 7. exd5 {[%clk 0:02:52]}  Nxd5 {[%clk 0:02:43]} 8. Re1 {[%clk 0:02:53]}  Nb6 {[%clk 0:02:43]} 9. Bb3 {[%clk 0:02:52]}  Bd6 {[%clk 0:02:43]} 10. Nbd2 {[%clk 0:02:51]}  Bg4 {[%clk 0:02:43]} 11. Ne4 {[%clk 0:02:50]}  Bh5 {[%clk 0:02:41]} 12. Ng3 {[%clk 0:02:45]}  Bg6 {[%clk 0:02:40]} 13. Bg5 {[%clk 0:02:41]}  Qd7 {[%clk 0:02:28]} 14. Nh4 {[%clk 0:02:41]}  Kh8 {[%clk 0:02:07]} 15. Nxg6+ {[%clk 0:02:29]}  hxg6 {[%clk 0:02:04]} 16. Ne4 {[%clk 0:02:25]}  Na5 {[%clk 0:01:32]} 17. Bc2 {[%clk 0:02:19]}  Be7 {[%clk 0:01:24]} 18. Qf3 {[%clk 0:02:15]}  Bxg5 {[%clk 0:00:30]} 19. Nxg5 {[%clk 0:02:16]}  f6 {[%clk 0:00:29]} 20. Ne4 {[%clk 0:02:11]}  c6 {[%clk 0:00:24]} 21. b4 {[%clk 0:02:09]}  Qd5 {[%clk 0:00:04]} 22. bxa5 {[%clk 0:02:06]}  Qxa5 {[%clk 0:00:04]} 23. Qh3+ {[%clk 0:01:57]}  Kg8 {[%clk 0:00:04]} 24. Bb3+ {[%clk 0:01:57]}  Nd5 {[%clk 0:00:03]} 25. c4 {[%clk 0:01:58]}  Nf4 {[%clk 0:00:03]} 26. c5+ {[%clk 0:01:57]}  Nd5 {[%clk 0:00:02]} 27. Bxd5+ {[%clk 0:01:49]}  cxd5 {[%clk 0:00:02]} 28. Qe6+ {[%clk 0:01:49]}  Kh7 {[%clk 0:00:01]} 29. Qxd5 {[%clk 0:01:47]}  Qc7 {[%clk 0:00:02]} 30. Rab1 {[%clk 0:01:45]}  Rab8 {[%clk 0:00:01]} 31. Re3 {[%clk 0:01:41]}  g5 {[%clk 0:00:01]} 32. Nd6 {[%clk 0:01:38]}  Kg6 {[%clk 0:00:01]} 33. Qe4+ {[%clk 0:01:38]}  f5 {[%clk 0:00:01]} 34. Qxe5 {[%clk 0:01:37]}  Rf6 {[%clk 0:00:02]} 35. h4 {[%clk 0:01:25]}  b6 {[%clk 0:00:01]} 36. hxg5 {[%clk 0:01:23]} 1-0


[Site "https://www.chess.com"]

[Event "Titled Tuesday Blitz June 21 Early 2022"]
[White "Samunenkov, Ihor"]
[Black "Svane, Frederik"]
[WhiteFideId "14187086"]
[BlackFideId "12923044"]
[WhiteElo "2409"]
[BlackElo "2459"]
[Result "0-1"]
[Round "05"]
[TimeControl "180+1"]
[Date "2022.06.21"]
[WhiteClock "0:00:03"]
[BlackClock "0:00:07"]

1. e4 {[%clk 0:03:00]}  c5 {[%clk 0:03:00]} 2. Nf3 {[%clk 0:03:00]}  e6 {[%clk 0:03:01]} 3. d4 {[%clk 0:03:01]}  cxd4 {[%clk 0:03:01]} 4. Nxd4 {[%clk 0:03:01]}  Nc6 {[%clk 0:03:02]} 5. Nc3 {[%clk 0:03:01]}  a6 {[%clk 0:03:02]} 6. Nxc6 {[%clk 0:02:52]}  bxc6 {[%clk 0:03:03]} 7. Bd3 {[%clk 0:02:52]}  d5 {[%clk 0:03:03]} 8. O-O {[%clk 0:02:51]}  Nf6 {[%clk 0:03:04]} 9. Qe2 {[%clk 0:02:37]}  Be7 {[%clk 0:02:59]} 10. Bd2 {[%clk 0:02:17]}  O-O {[%clk 0:02:59]} 11. Kh1 {[%clk 0:02:09]}  Bb7 {[%clk 0:03:00]} 12. f4 {[%clk 0:02:09]}  c5 {[%clk 0:02:59]} 13. e5 {[%clk 0:01:45]}  c4 {[%clk 0:02:51]} 14. Bxc4 {[%clk 0:01:22]}  dxc4 {[%clk 0:02:52]} 15. exf6 {[%clk 0:01:22]}  Bxf6 {[%clk 0:02:53]} 16. Be3 {[%clk 0:01:22]}  Qc7 {[%clk 0:02:48]} 17. Rad1 {[%clk 0:01:21]}  Rad8 {[%clk 0:02:47]} 18. Kg1 {[%clk 0:01:17]}  Qc6 {[%clk 0:02:44]} 19. Rxd8 {[%clk 0:01:10]}  Rxd8 {[%clk 0:02:44]} 20. Rd1 {[%clk 0:01:10]}  Rb8 {[%clk 0:02:38]} 21. Bd4 {[%clk 0:01:04]}  Bxd4+ {[%clk 0:02:33]} 22. Rxd4 {[%clk 0:01:05]}  Rc8 {[%clk 0:01:50]} 23. Qd2 {[%clk 0:00:44]}  h6 {[%clk 0:01:49]} 24. h3 {[%clk 0:00:33]}  Kh7 {[%clk 0:01:37]} 25. Kh2 {[%clk 0:00:32]}  Rc7 {[%clk 0:01:35]} 26. Ne4 {[%clk 0:00:29]}  Qb6 {[%clk 0:01:11]} 27. c3 {[%clk 0:00:27]}  Bd5 {[%clk 0:01:01]} 28. Qc2 {[%clk 0:00:14]}  Kg8 {[%clk 0:00:59]} 29. Nd2 {[%clk 0:00:11]}  Qc6 {[%clk 0:00:57]} 30. Nf1 {[%clk 0:00:10]}  f5 {[%clk 0:00:44]} 31. Ne3 {[%clk 0:00:10]}  Be4 {[%clk 0:00:44]} 32. Qf2 {[%clk 0:00:05]}  Qb6 {[%clk 0:00:33]} 33. Qd2 {[%clk 0:00:03]}  Bd3 {[%clk 0:00:31]} 34. b3 {[%clk 0:00:03]}  cxb3 {[%clk 0:00:24]} 35. axb3 {[%clk 0:00:04]}  Be4 {[%clk 0:00:22]} 36. b4 {[%clk 0:00:03]}  Qc6 {[%clk 0:00:05]} 37. c4 {[%clk 0:00:03]}  e5 {[%clk 0:00:05]} 38. fxe5 {[%clk 0:00:02]}  Qe6 {[%clk 0:00:05]} 39. c5 {[%clk 0:00:02]}  Qxe5+ {[%clk 0:00:06]} 40. Kg1 {[%clk 0:00:01]}  Rb7 {[%clk 0:00:06]} 41. Nc4 {[%clk 0:00:02]}  Qf6 {[%clk 0:00:06]} 42. Nd6 {[%clk 0:00:02]}  Re7 {[%clk 0:00:05]} 43. Nxe4 {[%clk 0:00:01]}  fxe4 {[%clk 0:00:06]} 44. c6 {[%clk 0:00:02]}  e3 {[%clk 0:00:06]} 45. Rd8+ {[%clk 0:00:01]}  Kh7 {[%clk 0:00:06]} 46. Qd3+ {[%clk 0:00:02]}  g6 {[%clk 0:00:06]} 47. Rd7 {[%clk 0:00:02]}  Qa1+ {[%clk 0:00:03]} 48. Kh2 {[%clk 0:00:02]}  Qe5+ {[%clk 0:00:04]} 49. g3 {[%clk 0:00:01]}  e2 {[%clk 0:00:04]} 50. Rxe7+ {[%clk 0:00:01]}  Qxe7 {[%clk 0:00:05]} 51. Qd7 {[%clk 0:00:01]}  e1=Q {[%clk 0:00:05]} 52. Qxe7+ {[%clk 0:00:02]}  Qxe7 {[%clk 0:00:06]} 53. c7 {[%clk 0:00:03]}  Qxc7 {[%clk 0:00:07]} 0-1


[Site "https://www.chess.com"]

[Event "Titled Tuesday Blitz June 21 Early 2022"]
[White "Sanchez, Robert"]
[Black "Hoffmann, Asa"]
[WhiteFideId "2034360"]
[BlackFideId "2001470"]
[WhiteElo "2010"]
[BlackElo "2117"]
[Result "0-1"]
[Round "05"]
[TimeControl "180+1"]
[Date "2022.06.22"]
[WhiteClock "0:00:02"]
[BlackClock "0:00:23"]

1. e4 {[%clk 0:03:00]}  d6 {[%clk 0:02:58]} 2. d4 {[%clk 0:03:00]}  Nf6 {[%clk 0:02:55]} 3. Nc3 {[%clk 0:03:01]}  c6 {[%clk 0:02:51]} 4. f3 {[%clk 0:03:01]}  Nbd7 {[%clk 0:02:50]} 5. Be3 {[%clk 0:03:01]}  e5 {[%clk 0:02:50]} 6. Qd2 {[%clk 0:03:02]}  Qc7 {[%clk 0:02:49]} 7. O-O-O {[%clk 0:03:02]}  Be7 {[%clk 0:02:48]} 8. g4 {[%clk 0:03:02]}  h6 {[%clk 0:02:40]} 9. h4 {[%clk 0:03:02]}  b5 {[%clk 0:02:39]} 10. Kb1 {[%clk 0:03:01]}  Nb6 {[%clk 0:02:39]} 11. Bd3 {[%clk 0:03:01]}  Be6 {[%clk 0:02:33]} 12. Nh3 {[%clk 0:02:56]}  a6 {[%clk 0:02:28]} 13. g5 {[%clk 0:02:55]}  Nfd7 {[%clk 0:02:27]} 14. gxh6 {[%clk 0:02:54]}  gxh6 {[%clk 0:02:26]} 15. dxe5 {[%clk 0:02:53]}  Nxe5 {[%clk 0:02:23]} 16. Bxh6 {[%clk 0:02:35]}  Nxf3 {[%clk 0:02:11]} 17. Qf4 {[%clk 0:02:34]}  Nxh4 {[%clk 0:02:05]} 18. Ng5 {[%clk 0:02:24]}  Ng6 {[%clk 0:02:00]} 19. Nxe6 {[%clk 0:02:20]}  fxe6 {[%clk 0:01:59]} 20. Qg4 {[%clk 0:02:16]}  Ne5 {[%clk 0:01:53]} 21. Qxe6 {[%clk 0:01:58]}  Qd7 {[%clk 0:01:50]} 22. Qb3 {[%clk 0:01:57]}  O-O-O {[%clk 0:01:46]} 23. a4 {[%clk 0:01:56]}  Nbc4 {[%clk 0:01:37]} 24. axb5 {[%clk 0:01:52]}  axb5 {[%clk 0:01:35]} 25. Ne2 {[%clk 0:01:41]}  Qa7 {[%clk 0:01:29]} 26. Bxc4 {[%clk 0:01:33]}  Nxc4 {[%clk 0:01:27]} 27. Nd4 {[%clk 0:01:22]}  Kd7 {[%clk 0:01:23]} 28. Qh3+ {[%clk 0:01:19]}  Kc7 {[%clk 0:01:18]} 29. Ne6+ {[%clk 0:01:19]}  Kb6 {[%clk 0:01:18]} 30. Nxd8 {[%clk 0:01:14]}  Rxd8 {[%clk 0:01:17]} 31. Be3+ {[%clk 0:01:08]}  c5 {[%clk 0:01:16]} 32. Qg2 {[%clk 0:00:32]}  Ra8 {[%clk 0:01:12]} 33. Bxc5+ {[%clk 0:00:32]}  dxc5 {[%clk 0:01:06]} 34. Rh6+ {[%clk 0:00:19]}  Bd6 {[%clk 0:00:37]} 35. Rdxd6+ {[%clk 0:00:15]}  Nxd6 {[%clk 0:00:37]} 36. Kc1 {[%clk 0:00:09]}  Qa1+ {[%clk 0:00:34]} 37. Kd2 {[%clk 0:00:09]}  Rd8 {[%clk 0:00:33]} 38. e5 {[%clk 0:00:08]}  Qxb2 {[%clk 0:00:31]} 39. exd6 {[%clk 0:00:08]}  Qd4+ {[%clk 0:00:31]} 40. Ke2 {[%clk 0:00:07]}  Rxd6 {[%clk 0:00:30]} 41. Rxd6+ {[%clk 0:00:08]}  Qxd6 {[%clk 0:00:30]} 42. Qa8 {[%clk 0:00:09]}  c4 {[%clk 0:00:29]} 43. Qe8 {[%clk 0:00:07]}  Kc5 {[%clk 0:00:27]} 44. Qc8+ {[%clk 0:00:06]}  Qc6 {[%clk 0:00:27]} 45. Qf8+ {[%clk 0:00:05]}  Qd6 {[%clk 0:00:26]} 46. Qc8+ {[%clk 0:00:05]}  Kd5 {[%clk 0:00:26]} 47. Qa8+ {[%clk 0:00:03]}  Ke5 {[%clk 0:00:26]} 48. Qb7 {[%clk 0:00:02]}  Qd5 {[%clk 0:00:24]} 49. Qc7+ {[%clk 0:00:02]}  Ke4 {[%clk 0:00:23]} 0-1


[Site "https://www.chess.com"]